bitfinex-derivatives/quotes_BNBF0:USTF0_20250908
["timestamp","ask_amount","ask_price","bid_price","bid_amount"]
[1757368457433,0.62557512,879.47,877.89,1.5172356]
[1757368457735,0.62557512,879.46,877.89,1.5172356]
[1757368457934,0.62557512,879.45,877.89,1.5172356]
[1757368458234,0.62557512,879.44,877.89,1.5172356]
[1757368458435,0.62557512,879.43,877.89,1.5172356]
[1757368458635,0.62557512,879.42,877.89,1.5172356]
[1757368458834,0.62557512,879.41,877.89,1.5172356]
[1757368459038,0.62557512,879.4,877.89,1.5172356]
[1757368459335,0.62557512,879.39,877.89,1.5172356]
[1757368459535,0.62557512,879.38,877.89,1.5172356]
[1757368459740,0.62557512,879.37,877.89,1.5172356]
[1757368459938,0.62557512,879.36,877.89,1.5172356]
[1757368460239,0.62557512,879.36,877.79,0.19764529]
[1757368460240,0.62557512,879.35,877.9,1.5172356]
[1757368460441,0.62557512,879.34,877.9,1.5172356]
[1757368460637,0.62557512,879.33,877.9,1.5172356]
[1757368460839,1.5245857,879.56,877.9,1.5172356]
[1757368461139,0.62556177,879.55,877.9,1.5172356]
[1757368461338,0.62556177,879.54,877.9,1.5172356]
[1757368461537,0.62556177,879.53,877.9,1.5172356]
[1757368461842,0.62556177,879.52,877.9,1.5172356]
[1757368462141,0.62556177,879.51,877.9,1.5172356]
[1757368462341,0.62556177,879.5,877.9,1.5172356]
[1757368462542,0.62556177,879.49,877.9,1.5172356]
[1757368462841,0.62556177,879.48,877.9,1.5172356]
[1757368463039,0.62556177,879.47,877.9,1.5172356]
[1757368463339,0.62556177,879.46,877.9,1.5172356]
[1757368463638,0.62556177,879.45,877.9,1.5172356]
[1757368463842,0.62556177,879.44,877.9,1.5172356]
[1757368464041,0.62556177,879.43,877.9,1.5172356]
[1757368464238,0.62556177,879.42,877.9,1.5172356]
[1757368464438,0.62556177,879.41,877.9,1.5172356]
[1757368464737,1.5245857,879.35,878.07,1.5172356]
[1757368464942,0.62556177,879.34,878.07,1.5172356]
[1757368465138,0.62556177,879.33,878.03,1.5172356]
[1757368465340,1.5245857,879.4,878.03,1.5172356]
[1757368465543,0.62555419,879.39,878.03,1.5172356]
[1757368465740,0.62555419,879.38,878.03,1.5172356]
[1757368465942,0.62555419,879.37,878.03,1.5172356]
[1757368466237,0.62555419,879.36,878.03,1.5172356]
[1757368466440,0.62555419,879.35,878.03,1.5172356]
[1757368466739,0.62555419,879.34,878.03,1.5172356]
[1757368466940,0.62555419,879.33,878.04,1.5172356]
[1757368467142,1.5245857,879.39,878.04,1.5172356]
[1757368467340,0.62554688,879.38,878.04,1.5172356]
[1757368467540,0.62554688,879.37,878.04,1.5172356]
[1757368467739,0.62554688,879.36,878.04,1.5172356]
[1757368468039,0.62554688,879.35,878.04,1.5172356]
[1757368468341,0.62554688,879.34,878.05,1.5172356]
[1757368468642,0.62554688,879.33,878.05,1.5172356]
[1757368468840,1.5245857,879.39,878.05,1.5172356]
[1757368469044,0.62557196,879.38,878.05,1.5172356]
[1757368469240,0.62557196,879.37,878.05,1.5172356]
[1757368469540,0.62557196,879.36,878.05,1.5172356]
[1757368469844,0.62557196,879.35,878.04,1.5172356]
[1757368470044,0.62557196,879.34,878.04,1.5172356]
[1757368470343,0.62557196,879.33,878.05,1.5172356]
[1757368470539,1.5245857,879.37,878.05,1.5172356]
[1757368470848,0.628561,879.36,878.05,1.5172356]
[1757368471142,0.628561,879.35,878.05,1.5172356]
[1757368471344,0.628561,879.34,878.05,1.5172356]
[1757368471544,0.628561,879.33,878.05,1.5172356]
[1757368471742,1.5245857,879.37,878.05,1.5172356]
[1757368471945,0.62858556,879.36,878.05,1.5172356]
[1757368472242,0.62858556,879.35,878.05,1.5172356]
[1757368472444,0.62858556,879.34,878.05,1.5172356]
[1757368472742,0.62858556,879.33,878.05,1.5172356]
[1757368472943,1.5245857,879.35,878.06,1.5172356]
[1757368473147,0.62861221,879.34,878.06,1.5172356]
[1757368473346,0.62861221,879.33,878.06,1.5172356]
[1757368473544,1.5245857,879.36,878.07,1.5172356]
[1757368473744,0.6286358,879.35,878.07,1.5172356]
[1757368474043,0.6286358,879.34,878.07,1.5172356]
[1757368474249,1.5245857,879.35,878.07,1.5172356]
[1757368474448,0.63028369,879.34,878.07,1.5172356]
[1757368474750,1.5245857,879.35,878.07,1.5172356]
[1757368474946,0.63028369,879.34,878.07,1.5172356]
[1757368475249,1.5245857,879.34,878.15,1.5172356]
[1757368475750,1.5245857,879.47,877.98,1.5172356]
[1757368475943,1.5245857,879.48,877.99,1.5172356]
[1757368476249,1.5245857,879.47,877.99,1.5172356]
[1757368477244,1.5245857,879.47,878.0,1.5172356]
[1757368478249,1.5245857,879.46,878.01,1.5172356]
[1757368479248,1.5245857,879.44,878.02,1.5172356]
[1757368481146,1.5245857,879.45,878.02,1.5172356]
[1757368481351,1.5245857,879.5,877.98,1.5172356]
[1757368481650,1.5245857,879.52,877.94,1.5172356]
[1757368482150,1.5245857,879.52,877.95,1.5172356]
[1757368482546,1.5245857,879.51,877.95,1.5172356]
[1757368485456,1.5245857,879.52,877.94,1.5172356]
[1757368485658,1.5245857,879.44,878.01,1.5172356]
[1757368486960,1.5245857,879.42,878.03,1.5172356]
[1757368487156,8.1625035,882.44,877.79,0.19764529]
[1757368487157,0.62968456,879.41,877.98,1.5172356]
[1757368487457,0.62968456,879.4,877.98,1.5172356]
[1757368487660,0.62968456,879.39,877.98,1.5172356]
[1757368487956,0.62968456,879.38,877.98,1.5172356]
[1757368488160,0.62968456,879.37,877.98,1.5172356]
[1757368488359,0.62968456,879.36,877.98,1.5172356]
[1757368488557,0.62968456,879.35,877.98,1.5172356]
[1757368488756,0.62968456,879.34,877.98,1.5172356]
[1757368489060,1.5245857,879.47,877.98,1.5172356]
[1757368489257,0.62968923,879.46,877.98,1.5172356]
[1757368489561,0.62968923,879.45,877.98,1.5172356]
[1757368489760,0.62968923,879.44,877.98,1.5172356]
[1757368490060,0.62968923,879.43,877.98,1.5172356]
[1757368490256,0.62968923,879.42,877.98,1.5172356]
[1757368490557,0.62968923,879.41,877.98,1.5172356]
[1757368490760,0.62968923,879.4,877.98,1.5172356]
[1757368490958,0.62968923,879.39,877.98,1.5172356]
[1757368491156,0.62968923,879.38,877.98,1.5172356]
[1757368491362,0.62968923,879.37,878.05,1.5172356]
[1757368491661,0.62968923,879.36,878.05,1.5172356]
[1757368491858,0.62968923,879.35,878.05,1.5172356]
[1757368492062,0.62968923,879.34,878.05,1.5172356]
[1757368492262,1.5245857,879.39,878.05,1.5172356]
[1757368492562,0.62980417,879.38,878.05,1.5172356]
[1757368492858,0.62980417,879.37,878.05,1.5172356]
[1757368493061,0.62980417,879.36,878.05,1.5172356]
[1757368493262,0.62980417,879.35,878.05,1.5172356]
[1757368493459,0.62980417,879.34,878.05,1.5172356]
[1757368493659,1.5245857,879.39,878.05,1.5172356]
[1757368493863,0.62980695,879.38,878.05,1.5172356]
[1757368494163,0.62980695,879.37,878.05,1.5172356]
[1757368494363,0.62980695,879.36,878.05,1.5172356]
[1757368494563,0.62980695,879.35,878.05,1.5172356]
[1757368494764,0.62980695,879.34,878.05,1.5172356]
[1757368494965,1.5245857,879.39,878.05,1.5172356]
[1757368495164,0.62981018,879.38,878.05,1.5172356]
[1757368495360,0.62981018,879.37,878.05,1.5172356]
[1757368495565,0.62981018,879.36,878.05,1.5172356]
[1757368495762,0.62981018,879.35,878.05,1.5172356]
[1757368496064,0.62981018,879.34,878.05,1.5172356]
[1757368496262,1.5245857,879.39,878.05,1.5172356]
[1757368496562,0.62981366,879.38,878.05,1.5172356]
[1757368496765,0.62981366,879.37,878.05,1.5172356]
[1757368496965,1.5245857,879.34,878.17,1.5172356]
[1757368497965,1.5245857,879.34,878.18,1.5172356]
[1757368498865,1.5245857,879.34,878.19,1.5172356]
[1757368499966,1.5245857,879.34,878.18,1.5172356]
[1757368500267,1.5245857,879.34,878.19,1.5172356]
[1757368502968,1.37212714,879.34,878.19,1.5172356]
[1757368503168,1.37212714,879.34,878.2,1.5172356]
[1757368508967,1.23491443,879.34,878.2,1.5172356]
[1757368509668,1.23491443,879.34,878.11,1.5172356]
[1757368516170,2.5418714,880.04,878.12,1.5172356]
[1757368516369,0.62645695,880.03,877.9,1.5172356]
[1757368516572,0.62645695,880.02,877.97,1.5172356]
[1757368516769,0.62645695,880.01,877.98,1.5172356]
[1757368516971,0.62645695,880.0,877.98,1.5172356]
[1757368517171,0.62645695,879.99,877.98,1.5172356]
[1757368517375,0.62645695,879.98,877.97,1.5172356]
[1757368517574,0.62645695,879.97,877.97,1.5172356]
[1757368517870,0.62645695,879.96,877.97,1.5172356]
[1757368518170,0.62645695,879.95,877.97,1.5172356]
[1757368518373,0.62645695,879.94,877.96,1.5172356]
[1757368518675,0.62645695,879.93,877.96,1.5172356]
[1757368518873,0.62645695,879.92,877.96,1.5172356]
[1757368519075,0.62645695,879.91,877.96,1.5172356]
[1757368519277,0.62645695,879.9,877.96,1.5172356]
[1757368519478,0.62645695,879.89,877.96,1.5172356]
[1757368519772,0.62645695,879.88,877.97,1.5172356]
[1757368519972,0.62645695,879.87,877.97,1.5172356]
[1757368520177,0.62645695,879.86,877.97,1.5172356]
[1757368520374,0.62645695,879.85,877.97,1.5172356]
[1757368520573,0.62645695,879.84,877.97,1.5172356]
[1757368520778,0.62645695,879.83,877.97,1.5172356]
[1757368521075,0.62645695,879.82,877.97,1.5172356]
[1757368521273,0.62645695,879.81,877.97,1.5172356]
[1757368521479,0.62645695,879.8,877.95,1.5172356]
[1757368521676,0.62645695,879.79,877.95,1.5172356]
[1757368521876,0.62645695,879.78,877.95,1.5172356]
[1757368522176,0.62645695,879.77,877.95,1.5172356]
[1757368522481,0.62645695,879.76,877.95,1.5172356]
[1757368522677,0.62645695,879.75,877.95,1.5172356]
[1757368522878,0.62645695,879.74,877.95,1.5172356]
[1757368523180,0.62645695,879.73,877.95,1.5172356]
[1757368523379,0.62645695,879.72,877.95,1.5172356]
[1757368523678,0.62645695,879.71,877.95,1.5172356]
[1757368523882,0.62645695,879.7,877.95,1.5172356]
[1757368524077,0.62645695,879.69,877.95,1.5172356]
[1757368524280,0.62645695,879.68,877.95,1.5172356]
[1757368524584,0.62645695,879.67,877.95,1.5172356]
[1757368524779,0.62645695,879.66,877.95,1.5172356]
[1757368525080,0.62645695,879.65,877.95,1.5172356]
[1757368525279,0.62645695,879.64,877.95,1.5172356]
[1757368525481,0.62645695,879.63,877.92,1.5172356]
[1757368525685,0.62645695,879.62,877.92,1.5172356]
[1757368525884,0.62645695,879.61,877.92,1.5172356]
[1757368526082,0.62645695,879.6,877.99,1.5172356]
[1757368526286,0.62645695,879.59,878.08,1.5172356]
[1757368526487,0.62645695,879.58,878.07,1.5172356]
[1757368526786,0.62645695,879.57,878.07,1.5172356]
[1757368527085,0.62645695,879.56,878.07,1.5172356]
[1757368527286,0.62645695,879.55,878.07,1.5172356]
[1757368527586,0.62645695,879.54,878.07,1.5172356]
[1757368527789,0.62645695,879.53,878.07,1.5172356]
[1757368527985,0.62645695,879.52,878.07,1.5172356]
[1757368528186,0.62645695,879.51,878.07,1.5172356]
[1757368528384,2.5418714,880.35,878.07,1.5172356]
[1757368528385,0.62645695,879.5,878.07,1.5172356]
[1757368528587,0.62645695,879.49,878.07,1.5172356]
[1757368528785,0.62645695,879.48,878.07,1.5172356]
[1757368529085,0.62645695,879.47,878.07,1.5172356]
[1757368529288,0.62645695,879.46,878.07,1.5172356]
[1757368529489,0.62645695,879.45,878.07,1.5172356]
[1757368529785,0.62645695,879.44,878.07,1.5172356]
[1757368529988,0.62645695,879.43,878.09,1.5172356]
[1757368530285,0.62645695,879.42,878.09,1.5172356]
[1757368530489,1.528607,879.55,878.11,1.5172356]
[1757368530691,0.61785829,879.54,878.08,1.5172356]
[1757368530991,0.61785829,879.53,878.08,1.5172356]
[1757368531189,0.61785829,879.52,878.08,1.5172356]
[1757368531387,0.61785829,879.51,878.08,1.5172356]
[1757368531591,0.61785829,879.5,878.08,1.5172356]
[1757368531791,0.61785829,879.49,878.08,1.5172356]
[1757368531991,0.61785829,879.48,878.08,1.5172356]
[1757368532291,0.61785829,879.47,878.08,1.5172356]
[1757368532491,0.61785829,879.46,878.08,1.5172356]
[1757368532688,0.61785829,879.45,878.08,1.5172356]
[1757368532891,0.61785829,879.44,878.08,1.5172356]
[1757368533086,0.61785829,879.43,878.08,1.5172356]
[1757368533291,0.61785829,879.42,878.08,1.5172356]
[1757368533488,1.528607,879.59,878.08,1.5172356]
[1757368533688,0.61782114,879.58,878.08,1.5172356]
[1757368533988,0.61782114,879.57,878.08,1.5172356]
[1757368534291,0.61782114,879.56,878.08,1.5172356]
[1757368534487,0.61782114,879.55,878.08,1.5172356]
[1757368534687,0.61782114,879.54,878.08,1.5172356]
[1757368534886,0.61782114,879.53,878.08,1.5172356]
[1757368535088,0.61782114,879.52,878.09,1.5172356]
[1757368535391,2.14642814,879.51,878.15,1.5172356]
[1757368535589,0.61782114,879.5,878.15,1.5172356]
[1757368535787,0.61782114,879.49,878.13,1.5172356]
[1757368535990,0.61782114,879.48,878.13,1.5172356]
[1757368536193,0.61782114,879.47,878.13,1.5172356]
[1757368536494,0.61782114,879.46,878.13,1.5172356]
[1757368536792,0.61782114,879.45,878.13,1.5172356]
[1757368536991,0.61782114,879.44,878.14,1.5172356]
[1757368537190,0.61782114,879.43,878.14,1.5172356]
[1757368537392,0.61782114,879.42,878.14,1.5172356]
[1757368537591,1.528607,879.52,878.14,1.5172356]
[1757368537791,0.61777763,879.51,878.14,1.5172356]
[1757368537992,0.61777763,879.5,878.14,1.5172356]
[1757368538191,0.61777763,879.49,878.14,1.5172356]
[1757368538391,0.61777763,879.48,878.14,1.5172356]
[1757368538595,0.61777763,879.47,878.14,1.5172356]
[1757368538793,0.61777763,879.46,878.14,1.5172356]
[1757368538997,0.61777763,879.45,878.14,1.5172356]
[1757368539293,0.61777763,879.44,878.14,1.5172356]
[1757368539602,0.61777763,879.43,878.14,1.5172356]
[1757368539793,0.61777763,879.42,878.14,1.5172356]
[1757368539993,1.528607,879.52,878.14,1.5172356]
[1757368540293,0.61776037,879.51,878.14,1.5172356]
[1757368540491,0.61776037,879.5,878.0,1.5172356]
[1757368540696,0.61776037,879.49,878.0,1.5172356]
[1757368540993,0.61776037,879.48,878.0,1.5172356]
[1757368541294,0.61776037,879.47,878.0,1.5172356]
[1757368541498,0.61776037,879.46,878.0,1.5172356]
[1757368541698,0.61776037,879.45,878.0,1.5172356]
[1757368541998,0.61776037,879.44,878.0,1.5172356]
[1757368542196,1.528607,879.68,878.0,1.5172356]
[1757368542197,0.61776037,879.43,878.0,1.5172356]
[1757368542498,0.61776037,879.42,878.0,1.5172356]
[1757368542797,1.528607,879.68,878.0,1.5172356]
[1757368543094,0.61774315,879.67,878.0,1.5172356]
[1757368543398,0.61774315,879.66,878.0,1.5172356]
[1757368543597,0.61774315,879.65,878.0,1.5172356]
[1757368543798,0.61774315,879.64,878.0,1.5172356]
[1757368543995,0.61774315,879.63,878.0,1.5172356]
[1757368544199,0.61774315,879.62,878.0,1.5172356]
[1757368544497,0.61774315,879.62,877.79,0.19764529]
[1757368544498,0.61774315,879.61,878.01,1.5172356]
[1757368544696,0.61774315,879.6,878.0,1.5172356]
[1757368544899,0.61774315,879.59,878.0,1.5172356]
[1757368545097,0.61774315,879.58,878.0,1.5172356]
[1757368545301,0.61774315,879.57,878.0,1.5172356]
[1757368545498,0.61774315,879.56,878.0,1.5172356]
[1757368545701,0.61774315,879.55,878.0,1.5172356]
[1757368545898,0.61774315,879.54,878.0,1.5172356]
[1757368546101,0.61774315,879.53,878.0,1.5172356]
[1757368546401,0.61774315,879.52,878.0,1.5172356]
[1757368546697,0.61774315,879.51,878.0,1.5172356]
[1757368546897,0.61774315,879.5,878.0,1.5172356]
[1757368547097,0.61774315,879.49,878.0,1.5172356]
[1757368547301,0.61774315,879.48,878.0,1.5172356]
[1757368547502,0.61774315,879.47,878.0,1.5172356]
[1757368547798,0.61774315,879.46,877.99,1.5172356]
[1757368548002,0.61774315,879.45,877.99,1.5172356]
[1757368548203,0.61774315,879.44,877.99,1.5172356]
[1757368548398,0.61774315,879.43,877.99,1.5172356]
[1757368548702,0.61774315,879.42,877.97,1.5172356]
[1757368548902,1.528607,879.72,877.97,1.5172356]
[1757368549102,0.61774418,879.71,877.97,1.5172356]
[1757368549300,0.61774418,879.7,877.97,1.5172356]
[1757368549504,0.61774418,879.69,877.97,1.5172356]
[1757368549799,0.61774418,879.68,877.97,1.5172356]
[1757368550103,1.528607,879.72,877.97,1.5172356]
[1757368550104,0.61774418,879.67,877.97,1.5172356]
[1757368550401,1.528607,879.64,878.03,1.5172356]
[1757368550702,3.5710953,881.12,877.79,0.19764529]
[1757368550703,1.528607,879.62,878.05,1.5172356]
[1757368550904,0.61774418,879.61,878.05,1.5172356]
[1757368551200,0.61774418,879.6,878.05,1.5172356]
[1757368551398,0.61774418,879.59,878.05,1.5172356]
[1757368551701,0.61774418,879.58,878.05,1.5172356]
[1757368551900,0.61774418,879.57,878.05,1.5172356]
[1757368552102,0.61774418,879.56,878.05,1.5172356]
[1757368552301,0.61774418,879.55,878.05,1.5172356]
[1757368552503,0.61774418,879.54,878.05,1.5172356]
[1757368552803,0.61774418,879.53,878.05,1.5172356]
[1757368553004,0.61774418,879.52,878.05,1.5172356]
[1757368553299,0.61774418,879.51,878.04,1.5172356]
[1757368553504,0.61774418,879.5,878.04,1.5172356]
[1757368553705,0.61774418,879.49,878.04,1.5172356]
[1757368554000,0.61774418,879.48,878.04,1.5172356]
[1757368554204,0.61774418,879.47,878.04,1.5172356]
[1757368554401,0.61774418,879.46,878.05,1.5172356]
[1757368554605,0.61774418,879.45,878.05,1.5172356]
[1757368554806,0.61774418,879.44,878.07,1.5172356]
[1757368555105,0.61774418,879.43,878.1,1.5172356]
[1757368555301,0.61774418,879.42,878.1,1.5172356]
[1757368555606,1.528607,879.68,878.01,1.5172356]
[1757368555906,0.61778904,879.67,877.95,1.5172356]
[1757368556200,0.61778904,879.66,877.95,1.5172356]
[1757368556404,0.61778904,879.65,877.95,1.5172356]
[1757368556604,0.61778904,879.64,877.95,1.5172356]
[1757368556801,0.61778904,879.63,877.95,1.5172356]
[1757368557005,0.61778904,879.62,877.95,1.5172356]
[1757368557204,0.61778904,879.61,877.95,1.5172356]
[1757368557402,0.61778904,879.6,877.95,1.5172356]
[1757368557703,0.61778904,879.59,877.96,1.5172356]
[1757368557904,0.61778904,879.58,877.96,1.5172356]
[1757368558206,0.61778904,879.57,877.95,1.5172356]
[1757368558404,0.61778904,879.56,877.95,1.5172356]
[1757368558604,0.61778904,879.55,877.97,1.5172356]
[1757368558802,0.61778904,879.54,877.97,1.5172356]
[1757368559002,0.61778904,879.53,877.97,1.5172356]
[1757368559205,0.61778904,879.52,877.97,1.5172356]
[1757368559405,0.61778904,879.51,877.97,1.5172356]
[1757368559605,0.61778904,879.5,877.97,1.5172356]
[1757368559800,0.61778904,879.49,877.97,1.5172356]
[1757368560003,0.61778904,879.48,877.97,1.5172356]
[1757368560201,0.61778904,879.47,877.96,1.5172356]
[1757368560407,0.61778904,879.46,877.96,1.5172356]
[1757368560703,0.61778904,879.45,877.96,1.5172356]
[1757368560903,0.61778904,879.44,877.96,1.5172356]
[1757368561202,0.61778904,879.43,877.96,1.5172356]
[1757368561407,0.61778904,879.42,877.96,1.5172356]
[1757368561608,1.528607,879.73,877.96,1.5172356]
[1757368561808,0.61786015,879.72,877.96,1.5172356]
[1757368562008,0.61786015,879.71,877.96,1.5172356]
[1757368562209,0.61786015,879.7,877.96,1.5172356]
[1757368562409,0.61786015,879.69,877.97,1.5172356]
[1757368562708,1.528607,879.72,877.97,1.5172356]
[1757368562709,0.61786015,879.68,877.97,1.5172356]
[1757368562909,0.61786015,879.67,877.98,1.5172356]
[1757368563108,0.61786015,879.66,877.98,1.5172356]
[1757368563305,0.61786015,879.65,877.97,1.5172356]
[1757368563505,0.61786015,879.64,877.93,1.5172356]
[1757368563809,0.61786015,879.63,877.88,1.5172356]
[1757368564009,0.61786015,879.62,877.94,1.5172356]
[1757368564206,0.61786015,879.61,877.94,1.5172356]
[1757368564409,0.61786015,879.6,877.94,1.5172356]
[1757368564704,0.61786015,879.59,877.94,1.5172356]
[1757368564906,0.61786015,879.58,877.94,1.5172356]
[1757368565105,0.61786015,879.57,877.94,1.5172356]
[1757368565308,0.61786015,879.56,877.94,1.5172356]
[1757368565505,0.61786015,879.55,877.94,1.5172356]
[1757368565709,0.61786015,879.54,877.94,1.5172356]
[1757368565904,0.61786015,879.53,877.94,1.5172356]
[1757368566108,0.61786015,879.52,877.94,1.5172356]
[1757368566306,0.61786015,879.51,877.94,1.5172356]
[1757368566509,0.61786015,879.5,877.94,1.5172356]
[1757368566706,0.61786015,879.49,877.94,1.5172356]
[1757368566904,1.528607,879.88,877.94,1.5172356]
[1757368566905,0.61786015,879.48,877.94,1.5172356]
[1757368567109,1.528607,879.88,877.94,1.5172356]
[1757368567306,0.61785075,879.87,877.94,1.5172356]
[1757368567609,0.61785075,879.86,877.94,1.5172356]
[1757368567806,0.61785075,879.85,877.94,1.5172356]
[1757368568010,0.61785075,879.84,877.94,1.5172356]
[1757368568305,0.61785075,879.83,877.94,1.5172356]
[1757368568507,0.61785075,879.82,877.94,1.5172356]
[1757368568707,0.61785075,879.81,877.94,1.5172356]
[1757368569007,0.61785075,879.8,877.94,1.5172356]
[1757368569209,0.61785075,879.79,877.94,1.5172356]
[1757368569409,0.61785075,879.78,877.94,1.5172356]
[1757368569708,0.61785075,879.77,877.94,1.5172356]
[1757368569905,0.61785075,879.76,877.94,1.5172356]
[1757368570105,0.61785075,879.75,877.94,1.5172356]
[1757368570310,0.61785075,879.74,877.95,1.5172356]
[1757368570606,0.61785075,879.73,877.95,1.5172356]
[1757368570906,0.61785075,879.72,877.95,1.5172356]
[1757368571105,0.61785075,879.71,877.95,1.5172356]
[1757368571310,0.61785075,879.7,877.95,1.5172356]
[1757368571507,0.61785075,879.69,877.94,1.5172356]
[1757368571811,0.61785075,879.68,877.94,1.5172356]
[1757368572008,0.61785075,879.67,877.94,1.5172356]
[1757368572207,0.61785075,879.66,877.94,1.5172356]
[1757368572511,0.61785075,879.65,877.95,1.5172356]
[1757368572711,0.61785075,879.64,877.95,1.5172356]
[1757368572908,0.61785075,879.63,877.95,1.5172356]
[1757368573106,0.61785075,879.62,877.95,1.5172356]
[1757368573306,0.61785075,879.61,877.96,1.5172356]
[1757368573508,0.61785075,879.6,877.98,1.5172356]
[1757368573706,3.5710953,881.36,878.19,1.5172356]
[1757368573707,2.14645775,879.59,878.19,1.5172356]
[1757368573911,2.14645775,879.58,878.19,1.5172356]
[1757368574106,0.61785075,879.57,878.19,1.5172356]
[1757368574312,0.61785075,879.56,878.2,1.5172356]
[1757368574612,0.61785075,879.55,878.2,1.5172356]
[1757368574810,0.61785075,879.54,878.2,1.5172356]
[1757368575009,0.61785075,879.53,878.18,1.5172356]
[1757368575311,0.61785075,879.52,878.18,1.5172356]
[1757368575508,0.61785075,879.51,878.2,1.5172356]
[1757368575709,0.61785075,879.5,878.2,1.5172356]
[1757368575908,0.61785075,879.49,878.19,1.5172356]
[1757368576208,0.61785075,879.48,878.19,1.5172356]
[1757368576406,1.528607,879.58,878.2,1.5172356]
[1757368576607,0.61808162,879.57,878.2,1.5172356]
[1757368576913,0.61808162,879.56,878.2,1.5172356]
[1757368577207,0.61808162,879.55,878.2,1.5172356]
[1757368577411,0.61808162,879.54,878.19,1.5172356]
[1757368577609,0.61808162,879.53,878.19,1.5172356]
[1757368577912,0.61808162,879.52,878.19,1.5172356]
[1757368578109,0.61808162,879.51,878.19,1.5172356]
[1757368578309,0.61808162,879.5,878.2,1.5172356]
[1757368578515,0.61808162,879.49,878.2,1.5172356]
[1757368578710,0.61808162,879.48,878.2,1.5172356]
[1757368578914,1.528607,879.58,878.2,1.5172356]
[1757368579111,0.61805418,879.57,878.2,1.5172356]
[1757368579310,0.61805418,879.56,878.2,1.5172356]
[1757368579510,0.61805418,879.55,878.2,1.5172356]
[1757368579713,0.61805418,879.54,878.2,1.5172356]
[1757368580015,0.61805418,879.53,878.22,1.5172356]
[1757368580309,0.61805418,879.52,878.22,1.5172356]
[1757368580512,0.61805418,879.51,878.22,1.5172356]
[1757368580708,0.61805418,879.5,878.22,1.5172356]
[1757368580909,0.61805418,879.49,878.22,1.5172356]
[1757368581212,0.61805418,879.48,878.22,1.5172356]
[1757368581411,1.528607,879.48,878.3,1.5172356]
[1757368582611,1.528607,879.48,878.31,1.5172356]
[1757368583411,1.528607,879.48,878.29,1.5172356]
[1757368583615,1.528607,879.51,878.29,1.5172356]
[1757368584913,1.528607,879.5,878.31,1.5172356]
[1757368585512,1.528607,879.5,878.3,1.5172356]
[1757368585712,1.528607,879.5,878.31,1.5172356]
[1757368586012,1.528607,879.5,878.3,1.5172356]
[1757368587316,1.37574631,879.5,878.29,1.5172356]
[1757368587513,1.37574631,879.5,878.31,1.5172356]
[1757368588412,2.5418714,880.12,878.29,1.5172356]
[1757368588712,2.5418714,880.23,878.26,1.5172356]
[1757368592616,2.5418714,880.23,878.24,1.5172356]
[1757368592916,2.5418714,880.27,878.24,1.5172356]
[1757368593414,2.5418714,880.22,878.27,1.5172356]
[1757368593617,0.61555951,880.21,878.27,1.5172356]
[1757368593814,0.61555951,880.2,878.27,1.5172356]
[1757368594118,0.61555951,880.19,878.27,1.5172356]
[1757368594319,0.61555951,880.18,878.27,1.5172356]
[1757368594518,0.61555951,880.17,878.27,1.5172356]
[1757368594717,0.61555951,880.16,878.27,1.5172356]
[1757368594915,0.61555951,880.15,878.27,1.5172356]
[1757368595215,0.61555951,880.14,878.27,1.5172356]
[1757368595516,0.61555951,880.13,878.27,1.5172356]
[1757368595715,0.61555951,880.12,878.27,1.5172356]
[1757368596019,0.61555951,880.11,878.27,1.5172356]
[1757368596319,0.61555951,880.1,878.27,1.5172356]
[1757368596615,0.61555951,880.09,878.27,1.5172356]
[1757368596818,0.61555951,880.08,878.27,1.5172356]
[1757368597016,0.61555951,880.07,878.27,1.5172356]
[1757368597220,0.61555951,880.06,878.27,1.5172356]
[1757368597520,0.61555951,880.05,878.27,1.5172356]
[1757368597720,0.61555951,880.04,878.27,1.5172356]
[1757368597920,0.61555951,880.03,878.27,1.5172356]
[1757368598220,0.61555951,880.02,878.28,1.5172356]
[1757368598520,0.61555951,880.01,878.28,1.5172356]
[1757368598714,0.61555951,880.0,878.32,1.5172356]
[1757368598915,2.5418714,880.09,878.32,1.5172356]
[1757368598916,0.61555951,879.99,878.32,1.5172356]
[1757368599117,0.61555951,879.98,878.32,1.5172356]
[1757368599318,0.61555951,879.97,878.32,1.5172356]
[1757368599519,0.61555951,879.96,878.32,1.5172356]
[1757368599720,0.61555951,879.95,878.32,1.5172356]
[1757368600017,0.61555951,879.94,878.32,1.5172356]
[1757368600218,0.61555951,879.93,878.32,1.5172356]
[1757368600417,0.61555951,879.92,878.32,1.5172356]
[1757368600717,0.61555951,879.91,878.32,1.5172356]
[1757368600917,2.5418714,880.08,878.32,1.5172356]
[1757368600918,0.61555951,879.9,878.32,1.5172356]
[1757368601117,0.61555951,879.89,878.32,1.5172356]
[1757368601319,0.61555951,879.88,878.32,1.5172356]
[1757368601521,0.61555951,879.87,878.32,1.5172356]
[1757368601720,0.61555951,879.86,878.31,1.5172356]
[1757368601921,0.61555951,879.85,878.31,1.5172356]
[1757368602122,0.61555951,879.84,878.31,1.5172356]
[1757368602417,0.61555951,879.83,878.34,1.5172356]
[1757368602622,0.61555951,879.82,878.34,1.5172356]
[1757368602818,0.61555951,879.81,878.34,1.5172356]
[1757368603018,0.61555951,879.8,878.34,1.5172356]